Cogmind - Beta 17 @@@ ROGUE MODE // 2026.07.15 @ 13:17:54 Player: pinbox Result: Destroyed by Y-45 Defender with Beam Rifle Performance ------------- Evolutions (0) 0 Regions Visited (3) 600 Robots Destroyed (23) 115 Value Destroyed (622) 622 Prototype IDs (15) 300 Alien Tech Used (0) 0 Bonus (0) 0 TOTAL SCORE: 1637 Bonus ------- None Cogmind --------- Core Integrity 0/250 Matter 175/300 Energy 96/100 System Corruption 0% Temperature Cool (12) Movement Walking (130) Location -9/Recycling Parts ------- > --- POWER (1) -------- (None) > --- PROPULSION (2) --- Cargo Legs > --- UTILITY (2+2) ---- Large Storage Unit Subdweller Optics > --- WEAPON (2) ------- (None) > --- INVENTORY (15) --- Subdweller Power Source Subdweller Power Source Spiked Treads Subdweller Monowheel Subdweller Monowheel Subdweller Monowheel Subdweller Monowheel Scrap Shield Scrap Shield Fragment (48) Scrap Shield Fragment (48) Scrap Shield Fragment (48) Peak State ------------ > --- POWER ------------ Ion Engine > --- PROPULSION ------- Cargo Legs > --- UTILITY ---------- Large Storage Unit Seismic Detector > --- WEAPON ----------- Subdweller Laser Subdweller Machine Gun > --- INVENTORY -------- Light Ion Engine Subdweller Power Source Light Treads Light Treads Spiked Treads Subdweller Monowheel Subdweller Monowheel Light Armor Plating Scrap Shield Medium Laser Grenade Launcher Scrap Shield Fragment [Rating: 25] Favorites ----------- Power Ion Engine Engine Ion Engine Propulsion Light Treads Treads Light Treads Leg Cargo Legs Utility Large Storage Unit Device Seismic Detector Storage Large Storage Unit Protection Light Armor Plating Weapon Medium Laser Energy Gun Medium Laser Ballistic Gun Subdweller Machine Gun Launcher Subdweller Shrapnel Launcher Build | -11 -10 -10 -9 ------- Run | Yrd Mat Sub Rec Slots Evolved . | . . . . Power . | . . . . Propulsion . | . . . . Utility . | . . . . Weapon . | . . . . Parts Attached 21 | 7 6 8 . Power 2 | 1 . 1 . Engine 2 | 1 . 1 . Core . | . . . . Reactor . | . . . . Propulsion 5 | 2 1 2 . Treads 4 | 2 1 1 . Leg 1 | . . 1 . Wheel . | . . . . Hover . | . . . . Flight . | . . . . Utility 7 | 2 3 2 . Device 3 | 1 . 2 . Storage 3 | 1 2 . . Processor . | . . . . Hackware . | . . . . Protection 1 | . 1 . . Artifact . | . . . . Weapon 7 | 2 2 3 . Energy Gun 4 | 2 1 1 . Energy Cannon . | . . . . Ballistic Gun 1 | . . 1 . Ballistic Cannon . | . . . . Launcher 2 | . 1 1 . Special Weapon . | . . . . Impact Weapon . | . . . . Slashing Weapon . | . . . . Piercing Weapon . | . . . . Special Melee Weapon . | . . . . Unidentified Prototypes 1 | . . 1 . Parts Lost 6 | . 1 4 1 Power 2 | . . 2 . Propulsion . | . . . . Utility 1 | . . 1 . Weapon 3 | . 1 1 1 Highest Loss Streak 4 | . 1 4 1 To Critical Strikes 1 | . . 1 . Average Backups 5 | . 2 7 8 Power 1 | . 1 1 2 Propulsion 1 | . . 2 5 Utility 1 | . . 1 1 Weapon 1 | . . 1 . Tool/Special . | . . . . Unused Backups 7 | . . . 7 Power 2 | . . . 2 Propulsion 4 | . . . 4 Utility 1 | . . . 1 Weapon . | . . . . Tool/Special . | . . . . Average Slot Usage (%) 87 | . 97 82 36 Engine 12 | . 14 12 . Treads 19 | . 28 14 . Leg 3 | . . 5 11 Device 9 | . 12 8 11 Storage 13 | . 14 12 11 Protection 3 | . 2 3 . Energy Gun 20 | . 25 17 . Ballistic Gun 4 | . . 6 . Peak Build Rating 25 | 7 7 25 23 Average Rating 12 | 5 6 16 22 On Entrance 8 | . 7 7 21 Avg Prop Armor Cover (%) . | . . . . Naked Turns . | . . . . Heaviest Build 36 | 15 31 36 22 Greatest Support 55 | 40 40 55 55 Greatest Overweight (x) . | . . . . Average Overweight (x) . | . . . . Largest Inventory Capacity 15 | 8 15 15 15 Average Capacity 13 | 6 11 15 15 Most Carried 15 | 2 4 15 13 Average Carried 6 | . 2 9 12 Final Capacity 15 | 8 15 15 15 Final Carried 13 | 1 3 13 12 Class Distribution -------------------- 100% | Mutant Dominant Class ---------------- Mutant | -10/Materials Mutant | -10/Subcaves Mutant | -9/Recycling Resources | -11 -10 -10 -9 ----------- Run | Yrd Mat Sub Rec Matter Collected 556 | 224 136 196 . Remotely . | . . . . Salvage Created 730 | 50 471 180 29 Parts 41 | 7 22 8 4 Haulers Intercepted 2 | . 2 . . Recyclers Shooed 1 | . 1 . . Parts Field Recycled . | . . . . Retrieved Matter . | . . . . Parts Self-Destructed 13 | . . 13 . Prevented . | . . . . Parts Restored . | . . . . Kills | -11 -10 -10 -9 ------- Run | Yrd Mat Sub Rec Combat Hostiles Destroyed 16 | . 8 6 2 Guns 12 | . 7 5 . AOE 3 | . . 1 2 Classes Destroyed 8 | 1 4 2 1 Tunneler 3 | 3 . . . Hauler 2 | . 2 . . Operator 1 | . 1 . . Watcher 1 | . 1 . . Swarmer 2 | . . 2 . Grunt 8 | . 8 . . Sentry 2 | . . . 2 Subdweller 4 | . . 4 . Best Kill Streak 3 | 2 3 2 2 Combat Bots Only 3 | . 3 2 2 Max Kills in Single Turn 1 | 1 1 1 1 Gunslinging . | . . . . Exploded 1 | . . 1 1 Melee . | . . . . Uniques/NPCs Destroyed . | . . . . Combat | -11 -10 -10 -9 -------- Run | Yrd Mat Sub Rec Hostile Shots Fired 109 | . 47 37 25 Missed 29 | . 15 10 4 Hits 80 | . 32 27 21 Projectile 80 | . 32 27 21 AOE 1 | . . 1 . Critical Strikes 4 | . . 1 3 Damage Taken 1327 | . 445 485 397 Core 260 | . 79 62 119 Absorbed by Shields . | . . . . Core Remaining (%) 100 | 100 . . . Volleys Fired 106 | 4 39 57 6 Largest 2 | 2 2 2 1 Hottest 110 | 90 90 110 40 Shots Fired 179 | 8 64 101 6 Gun 172 | 8 64 100 . Cannon . | . . . . Launcher 7 | . . 1 6 Special . | . . . . Kinetic 32 | . . 26 6 Thermal 120 | 4 41 75 . Explosive . | . . . . Electromagnetic 27 | 4 23 . . Robot Hit Streak 11 | 2 11 11 3 Robot Miss Streak 3 | 1 2 3 1 Penetration Max . | . . . . Secondary Targets 2 | . 2 . . Max Gunslinging Chain 1 | . 1 . . Shots Hit Robots 87 | 4 49 29 5 Core Hits 39 | 3 24 9 3 Critical Kills . | . . . . Critical Parts Destroyed . | . . . . Critical Strikes 3 | . 3 . . Burn 3 | . 3 . . Melee Attacks . | . . . . Impact . | . . . . Slashing . | . . . . Piercing . | . . . . Sneak Attacks . | . . . . Combat Hostiles . | . . . . Follow-up Attacks . | . . . . Damage Inflicted 1802 | 49 721 654 378 Guns 1293 | 49 635 609 . Cannons . | . . . . Explosions 509 | . 86 45 378 Melee . | . . . . Ramming . | . . . . Kinetic 652 | . . 274 378 Thermal 900 | 24 496 380 . Explosive . | . . . . Electromagnetic 250 | 25 225 . . Impact . | . . . . Slashing . | . . . . Piercing . | . . . . Highest Corruption . | . . . . Average Corruption . | . . . . Corruption Purged . | . . . . Corruption Blocked . | . . . . Overload Shots . | . . . . Overflow Damage . | . . . . Projectiles . | . . . . Explosions . | . . . . Melee . | . . . . Knockbacks . | . . . . Impact . | . . . . Kinetic . | . . . . Secondary . | . . . . Self-Inflicted Damage 150 | . 56 . 94 Shots 7 | . 2 . 5 Rammed . | . . . . Targets Rammed . | . . . . Kicked . | . . . . Crushed . | . . . . Highest Temperature 363 | 60 363 . 63 Average Temperature 96 | 24 109 . 42 Received Heat Transfer 420 | . 213 90 117 Siege Activations . | . . . . Martial Activations . | . . . . Shielding Activations . | . . . . Robots Disrupted . | . . . . Combat Hostiles . | . . . . Robots Corrupted . | . . . . Combat Hostiles . | . . . . Parts Fried 1 | . 1 . . Impact Corruptions . | . . . . Robots Melted 1 | . 1 . . Combat Hostiles 1 | . 1 . . Parts Melted 9 | . 9 . . Heat Transferred 2118 | 74 1569 475 . Parts Sabotaged . | . . . . Parts Stolen . | . . . . Parts Stripped . | . . . . Power Chain Reactions 2 | . 2 . . Alert | -11 -10 -10 -9 ------- Run | Yrd Mat Sub Rec Maximum Alert Level . | . . . . Low Security (%) 100 | 100 100 . 100 Level 1 . | . . . . Level 2 . | . . . . Level 3 . | . . . . Level 4 . | . . . . Level 5 . | . . . . High Security . | . . . . Max Security . | . . . . Peak Influence 93 | 5 70 . 93 Initial . | . . . . Average 21 | . 24 . 44 Influence Increases 409 | 15 261 40 93 Destroy 0b10 Robot/C 240 | . 160 40 40 Destroy 0b10 Robot/NC 35 | 15 20 . . Destroy Leader 36 | . 36 . . Successful Hack 21 | . 21 . . Disable Machine 15 | . . . 15 Destroy Structure 47 | . 9 . 38 Lose Combat Pursuer 15 | . 15 . . Influence Decreases 326 | 15 216 85 10 Entered New Map 22 | . . 22 . Time Decay 284 | 15 206 63 . Lost Part 20 | . 10 . 10 Squads Dispatched 3 | . 3 . . Investigation 3 | . 3 . . Extermination . | . . . . Reinforcement . | . . . . Assault . | . . . . Garrison . | . . . . Intercept . | . . . . Searches Triggered . | . . . . Construction Impeded . | . . . . Haulers Reinforced . | . . . . Active Scanning Responses . | . . . . Cargo Convoy Interrupts . | . . . . Stealth | -11 -10 -10 -9 --------- Run | Yrd Mat Sub Rec Distress Signals 1 | . 1 . . Communications Jammed . | . . . . Distress Signals . | . . . . Times Spotted 21 | . 11 7 3 Peak Tracking Total 3 | . 3 2 3 Tactical Retreats 1 | . 1 . . Traps | -11 -10 -10 -9 ------- Run | Yrd Mat Sub Rec Traps Triggered 1 | . 1 . . Indirectly . | . . . . Trap Hack Attempts . | . . . . Triggered . | . . . . Disarmed . | . . . . Reprogrammed . | . . . . Reused . | . . . . Traps Extracted . | . . . . Installed . | . . . . Triggered . | . . . . Machines | -11 -10 -10 -9 ---------- Run | Yrd Mat Sub Rec Machines Disabled 3 | . . 2 1 Max in Single Turn 1 | . . 1 1 Machines Repaired . | . . . . Machines Dismantled . | . . . . Machines Sabotaged . | . . . . Overloaded Fab Kills . | . . . . Hacking | -11 -10 -10 -9 --------- Run | Yrd Mat Sub Rec Machines Accessed 9 | . 8 1 . Terminals 7 | . 7 . . Fabricators . | . . . . Repair Stations . | . . . . Recycling Units 1 | . 1 . . Scanalyzers . | . . . . Garrison Access . | . . . . Total Hacks 35 | . 26 9 . Successful 22 | . 13 9 . Failed 13 | . 13 . . Catastrophic . | . . . . Database Lockouts . | . . . . Manual 25 | . 25 . . Terminals 24 | . 24 . . Fabricators . | . . . . Repair Stations . | . . . . Recycling Units 2 | . 2 . . Scanalyzers . | . . . . Garrison Access . | . . . . Terminal Hacks 10 | . 1 9 . Record 8 | . . 8 . Zone Layout 1 | . 1 . . Proto ID Catalog 1 | . . 1 . Fabricator Hacks . | . . . . Repair Station Hacks . | . . . . Recycling Unit Hacks 1 | . 1 . . Report Inventory 1 | . 1 . . Scanalyzer . | . . . . Garrison Access Hacks . | . . . . Unauthorized Hacks 11 | . 11 . . Terminals 10 | . 10 . . Assimilate 1 | . 1 . . Botnet 3 | . 3 . . Skim 6 | . 6 . . Fabricators . | . . . . Repair Stations . | . . . . Recycling Units 1 | . 1 . . Recyclers 1 | . 1 . . Scanalyzers . | . . . . Garrison Access . | . . . . Data Cores Recovered 1 | . 1 . . Used 1 | . 1 . . Hacking Detections 7 | . 7 . . Full Trace Events 1 | . 1 . . Feedback Events . | . . . . Feedback Blocked . | . . . . Robot Schematics Acquired . | . . . . Robots Built . | . . . . Authchips . | . . . . Time . | . . . . Total Robot Build Rating . | . . . . Part Schematics Acquired . | . . . . Parts Built . | . . . . Authchips . | . . . . Time . | . . . . Total Part Build Rating . | . . . . Part Studies Acquired . | . . . . Parts Repaired . | . . . . Time . | . . . . Parts Recycled . | . . . . Recycled Matter . | . . . . Retrieved Matter . | . . . . Retrieved Components . | . . . . Parts Scanalyzed . | . . . . Part Schematics Acquired . | . . . . Parts Damaged . | . . . . Bothacking | -11 -10 -10 -9 ------------ Run | Yrd Mat Sub Rec Used RIF Installer . | . . . . Robots Hacked . | . . . . Non-combat . | . . . . Combat . | . . . . Robot Hacks Applied . | . . . . Relay Couplers Released . | . . . . Fabnet Peak Effective % . | . . . . Robots Rewired . | . . . . Allies Hacked . | . . . . Hacks Repelled . | . . . . Allies | -11 -10 -10 -9 -------- Run | Yrd Mat Sub Rec Total Allies . | . . . . Largest Group . | . . . . Highest-Rated Group . | . . . . Highest-Rated Ally . | . . . . Total Orders . | . . . . Ally Attacks . | . . . . Total Damage . | . . . . Kills . | . . . . Allies Corrupted . | . . . . Allies Melted . | . . . . Intel | -11 -10 -10 -9 ------- Run | Yrd Mat Sub Rec Active Infowar (turns) 1717 | 16 652 1030 19 Optics 48 | . . 29 19 Seismic 1669 | 16 652 1001 . Robot Analysis Total . | . . . . Derelict Logs Recovered 1 | . . 1 . Drone Launches . | . . . . Drone Recoveries . | . . . . Exploration | -11 -10 -10 -9 ------------- Run | Yrd Mat Sub Rec Turns Passed 2345 | 117 754 1455 19 Spaces Moved 1311 | 60 383 863 5 Core 2 | 2 . . . Treads 862 | 58 383 421 . Legs 447 | . . 442 5 Wheels . | . . . . Hover . | . . . . Flight . | . . . . Fastest Speed 50 | 50 160 130 130 Average Speed 149 | 156 160 144 130 Slowest Speed 160 | 160 160 160 130 Overloaded Moves . | . . . . Propulsion Burnouts . | . . . . Robots Hopped . | . . . . Potential Cave-ins . | . . . . Cave-ins Triggered . | . . . . Exploration Rate (%) 33 | 4 81 43 7 Regions Visited 3 Branch Regions 2 Pre-discovered Areas 1 | . . 1 . Known Exits Taken 2 | . 1 1 . Unknown Exits Taken 1 | 1 . . . Scrap Searched 7 | . . 7 . Spaces Dug . | . . . . Terrain Destroyed 83 | . 7 14 62 Melee . | . . . . Projectile . | . . . . AOE 83 | . 7 14 62 Terrain Rammed . | . . . . Walls Destroyed . | . . . . Machines Disabled . | . . . . Actions | -11 -10 -10 -9 --------- Run | Yrd Mat Sub Rec Total 1523 | 72 462 977 12 Wait 32 | . 22 10 . Move 1308 | 59 382 862 5 Hop . | . . . . Pick Up 17 | 2 2 13 . Fast Attach 11 | 6 1 4 . Attach 16 | 1 5 9 1 Detach 18 | . 5 13 . Swap 4 | . 3 1 . Drop 11 | . 3 8 . Fire 106 | 4 39 57 6 Melee . | . . . . Ram . | . . . . Kick . | . . . . Crush . | . . . . Escape Stasis . | . . . . Rewire . | . . . . Trap . | . . . . Miscellaneous . | . . . . Route ------- -11/Scrapyard -10/Materials (discovered 5 exits: *Mat x3 / [*Min] / *Sub) -10/Subcaves (discovered 3 exits: *Mat x2 / *Rec) -9/Recycling History --------- Turn | Location | Event 6 | -11/Scrapyard | Discovered new exit (range 15) 118 | -11/Scrapyard | Entered Materials 295 | -10/Materials | Discovered new exit (range 9) 351 | -10/Materials | Build established: Mutant 363 | -10/Materials | Discovered new exit (range 14) 520 | -10/Materials | Learned 2 Mines zone layouts 540 | -10/Materials | Discovered new exit (range 13) 598 | -10/Materials | Learned Storage emergency access door positions 620 | -10/Materials | Identified exit to Materials 634 | -10/Materials | Learned location of 2 exits from Mines 638 | -10/Materials | Learned location of 2 exits from Subcaves 639 | -10/Materials | Learned Storage stockpile data 701 | -10/Materials | Identified exit to Subcaves 701 | -10/Materials | Learned location of 2 exits from Materials 872 | -10/Materials | Entered Subcaves 873 | -10/Subcaves | Approached by a straggling Scientist 873 | -10/Subcaves | Identified exit to Materials 874 | -10/Subcaves | Identified exit to Recycling 876 | -10/Subcaves | Learned 8 Materials zone layouts 1218 | -10/Subcaves | Shifting Twisted Machinery released Spk. Treads 1221 | -10/Subcaves | Shifting Twisted Machinery released Sub. Laser 1341 | -10/Subcaves | Learned location of Zion (-6) 1341 | -10/Subcaves | Met a Zionite searching for "candidates" 1419 | -10/Subcaves | Shifting Twisted Machinery released Sub. Monowheel 1421 | -10/Subcaves | Shifting Twisted Machinery released Sub. Machine Gun 1423 | -10/Subcaves | Shifting Twisted Machinery released Flamer 1619 | -10/Subcaves | Visited 4L-MR0's lab 1633 | -10/Subcaves | Found Prototype Device 1633 | -10/Subcaves | Identified Sfc. Transmogrifier 1642 | -10/Subcaves | Found Cargo Legs 1644 | -10/Subcaves | Attached Cargo Legs, gained temporary slots: Utility x2 1994 | -10/Subcaves | Disturbed a concealed Subdweller 2277 | -10/Subcaves | Core integrity fell below 50% 2325 | -10/Subcaves | Lost 4 parts (2p1u1w) 2327 | -10/Subcaves | Entered Recycling 2333 | -9/Recycling | Core integrity fell below 20% 2346 | -9/Recycling | Destroyed by Y-45 Defender with Beam Rifle Last Messages --------------- to Scrap Shield. 02268_ Critical hit (Destroy). 02268_ Sub. Machine Gun destroyed. 02274_ Seismic Detector destroyed. 02284_ Ion Engine destroyed. 02290_ Sub. Laser shoots sparks and powers down. 02294_ Lgt. Ion Engine destroyed. 02295_ O9-PAT(R) destroyed. 02295_ Machine disabled. 02297_ Dropped Broken Sub. Laser. DJ-7JB(c): "I think it's somewhere northwest of here" 02303_ Acquired 33 matter. 02304_ Acquired 12 matter. LOCATION=RECYCLING GOAL=ESCAPE 02329_ Y-45 Defender springs to life. 02333_ Critical hit (Burn: +37). 02339_ Y-45 Defender destroyed. 02342_ Sub. Shrapnel Launcher destroyed. Map ----- +----------------------------------------------------+ | ????????????????????????????????????????????? | | ????????????????????????????????????????????? | | ????????????????????????????????????????????? | | ????????????????????????????????????????????? | | ????????????????????????????????????????????? | | ????????????????????????????????????????????? | | ????????????????????????????????????????????? | | ????????????????????????????????????????????? | | ????????????????????????????????????????????? | | ????????????????????#####???????????????????? | | ???????????????????? ???????????????????? | | ????????????????????? ???????????????????? | | ????????????????????? #??????????????????? | | ??????????######+#???# #??????????????????? | | ??????????# ??# ??????????????????? | | ??????????# ### ##?????????????????? | | ??????????# ; ; ""?????????????????? | | ??????????# YY"?????????????????? | | ?????????## "?????????????????? | | ?????????#r #?????????????????? | | ??????????# ?????????????????? | | ??????????# ?????????????????? | | ??????????# % ?????????????????? | | ???????????????## ##????????????????? | | ???????????????# /#????????????????? | | ???????????????## ! @/#????????????????? | | ????????????????# =%[ /#????????????????? | | ????????????????## ;; ;##????????????????? | | ?????????????????# ; ;#?????????????????? | | ?????????????????##### ;#?????????????????? | | ?????????????????????##;;;#?????????????????? | | ??????????????????????#####?????????????????? | | ????????????????????????????????????????????? | | ????????????????????????????????????????????? | | ????????????????????????????????????????????? | | ????????????????????????????????????????????? | | ????????????????????????????????????????????? | | ????????????????????????????????????????????? | | ????????????????????????????????????????????? | | | | | | | | | | | | | | | | | | | | | | | +----------------------------------------------------+ Best States ------------- Heat Dissipation 25 Energy Generation 10 Energy Capacity 250 Matter Stores 300 Matter Capacity 300 Sight Range 21 Terrain Scan Density 10 Armor Coverage 150 Evasion (%) 55 Recoil Reduction 2 Item Schematics ----------------- None Robot Schematics ------------------ None Fabricated ------------ Nothing Repaired ---------- Nothing Studied --------- None Alien Tech Used ----------------- None Achievements -------------- None Challenges ------------ None Game ------ Seed TransdimensionalMicroReplica Manual? 0 Play Time 00:17:10 Cumulative 57.7 hours Start 2026.07.15 @ 12:57:43 End 2026.07.15 @ 13:17:54 Sessions 1 Manual Loads 0 Difficulty Rogue Special Mode None Game No. 62 Rogue 62 Adventurer 0 Explorer 0 Win Type - Total 1 Types 1/0/0/0/0/0/0/0/0/0 Lore% 51 Gallery% 40 Achievement% 37 Wizard Run 0 Options --------- Layout 1 ASCII 0 Keyboard 1 Movement Numpad Keybinds 1 Fullscreen 2 Font 24/Smallcaps Map View 50x40 Zoom Use 0% Tactical HUD 1 Map Filters NONE Filters NONE Steam 1 RUN: a5441a21-1e35-46a2-bfa9-c7fda8daba02